bitfinex/quotes_ETHUSD_20260202
["timestamp","ask_amount","ask_price","bid_price","bid_amount"]
[1770062943887,0.0011,2343.4,2342.3,1.06732698]
[1770062944798,13.18899145,2343.3,2341.9,0.94465446]
[1770062945015,0.895,2343.2,2341.9,1.06848133]
[1770062946010,13.01711995,2343.2,2341.9,1.06848133]
[1770062946899,1.06696257,2343.1,2341.9,0.001]
[1770062947111,13.18908252,2343.1,2341.9,0.001]
[1770062947283,0.91068936,2343.0,2341.9,0.001]
[1770062947478,1.35997719,2342.9,2341.9,0.001]
[1770062948090,13.48209714,2342.9,2341.9,0.001]
[1770062948292,0.91225408,2342.8,2341.9,0.001]
[1770062948515,13.48209714,2342.9,2341.9,0.001]
[1770062948692,0.91224349,2342.8,2341.9,0.001]
[1770062948882,1.43943406,2342.7,2341.9,0.001]
[1770062949480,1.13311387,2343.2,2342.3,0.01710608]
[1770062949820,0.0011,2343.4,2342.6,0.01710608]
[1770062950315,0.91633647,2343.3,2342.6,0.01710608]
[1770062950614,0.91633647,2343.2,2342.6,0.01710608]
[1770062950908,0.0011,2343.4,2342.6,0.01710608]
[1770062951111,0.91648025,2343.3,2342.6,0.01710608]
[1770062951315,0.91730665,2343.2,2342.4,1.06728142]
[1770062951528,0.91730665,2343.1,2342.4,1.60263274]
[1770062951818,0.91727543,2343.0,2342.3,1.06730209]
[1770062952018,2.05032669,2342.9,2342.1,1.06741524]
[1770062952332,0.91721282,2342.8,2342.1,1.06741524]
[1770062952484,0.91721282,2342.7,2342.1,1.06741524]
[1770062952685,0.91721282,2342.6,2342.1,1.06741524]
[1770062952890,1.13311387,2342.9,2342.1,1.06741524]
[1770062953126,0.91756714,2342.8,2342.1,1.06741524]
[1770062953318,0.91756714,2342.7,2341.9,0.001]
[1770062953523,0.91756714,2342.6,2341.9,0.001]
[1770062953821,0.35653773,2342.8,2341.9,0.001]
[1770062954030,0.9176224,2342.7,2341.9,0.001]
[1770062954223,0.9176224,2342.6,2341.9,0.001]
[1770062954519,0.41761111,2342.5,2342.1,0.001]
[1770062954717,14.67888359,2342.8,2341.9,0.001]
[1770062955027,1.13311387,2342.4,2341.6,0.001]
[1770062955323,2.20044085,2342.3,2341.6,0.001]
[1770062955494,1.13311387,2342.2,2341.6,0.001]
[1770062956923,1.13311387,2342.3,2341.6,0.001]
[1770062957097,1.13311387,2342.5,2341.6,0.001]
[1770062957292,1.66950806,2342.5,2341.6,0.001]
[1770062959026,1.13311387,2342.6,2341.7,0.01710608]
[1770062959204,1.13311387,2342.7,2341.7,0.01710608]
[1770062959521,1.13311387,2342.7,2341.8,1.06755487]
[1770062959929,1.13311387,2342.8,2341.8,1.06755487]
[1770062960096,1.13311387,2342.8,2341.9,0.53548804]
[1770062960097,2.20021358,2342.8,2341.9,0.53548804]
[1770062960296,1.13311387,2342.7,2341.7,1.06757143]
[1770062960800,1.13311387,2342.3,2341.6,0.001]
[1770062961000,1.13311387,2342.2,2341.6,0.001]
[1770062961327,3.09548642,2342.2,2341.6,0.001]
[1770062962398,3.09548642,2342.2,2340.5,4.28963512]
[1770062962399,13.72654387,2342.0,2340.5,4.28963512]
[1770062962621,1.13311387,2341.6,2340.5,1.06813468]
[1770062962797,2.02811387,2341.5,2340.3,0.001]
[1770062963119,1.13311387,2341.1,2340.3,0.001]
[1770062963317,2.20102212,2341.1,2340.3,0.001]
[1770062963527,0.64723687,2341.0,2340.3,0.001]
[1770062963736,1.06787746,2341.1,2340.3,0.001]
[1770062964306,12.59343,2340.9,2340.0,0.0018056]
[1770062964507,0.895,2340.8,2340.0,0.0018056]
[1770062965538,0.895,2340.8,2339.3,1.06869242]
[1770062965539,14.79460043,2340.7,2339.3,1.06869242]
[1770062965708,15.01032956,2340.7,2339.4,0.53442811]
[1770062966331,0.895,2340.6,2339.4,0.53442811]
[1770062967235,13.942273,2340.7,2339.4,0.53442811]
[1770062967531,1.06814783,2340.5,2339.4,1.60304873]
[1770062967736,1.06814783,2340.5,2339.5,0.58778235]
[1770062967737,0.62356696,2340.4,2339.5,0.58778235]
[1770062968039,1.348843,2340.7,2339.5,12.9559611]
[1770062968205,1.96297266,2340.9,2339.5,12.9559611]
[1770062968410,1.96297266,2340.9,2340.3,0.001]
[1770062969141,0.895,2340.8,2340.3,0.001]
[1770062969314,12.59343,2341.1,2340.3,0.001]
[1770062969514,0.896,2341.1,2340.3,0.001]
[1770062969739,4.27103078,2341.4,2340.3,0.001]
[1770062970036,0.896,2341.0,2340.3,0.001]
[1770062970335,1.7932198,2341.3,2340.3,0.001]
[1770062970534,0.896,2341.0,2340.3,0.001]
[1770062971642,1.06796531,2340.9,2340.3,0.001]
[1770062972708,1.96395559,2341.0,2340.3,0.001]
[1770062973024,0.62355302,2340.9,2340.3,0.001]
[1770062974563,1.96393092,2341.0,2340.3,0.001]
[1770062975340,1.96392231,2341.0,2340.3,0.001]
[1770062975840,0.896,2341.0,2340.3,0.001]
[1770062976522,0.896,2341.1,2340.3,0.001]
[1770062977352,12.59343,2340.6,2339.5,0.58778235]
[1770062977552,9.46101557,2340.7,2339.1,0.001]
[1770062977553,12.59343,2339.8,2339.1,0.001]
[1770062977850,0.896,2339.7,2339.1,0.001]
[1770062978439,1.96453009,2339.7,2339.1,0.001]
[1770062978647,1.96453009,2339.7,2338.3,0.000804]
[1770062978807,0.62384045,2339.6,2338.3,0.000804]
[1770062979011,13.21727045,2339.6,2338.3,0.000804]
[1770062979210,12.59343,2339.3,2337.8,0.001]
[1770062979409,12.59343,2339.3,2336.8,0.0008048]
[1770062979410,0.01710608,2337.3,2336.8,0.0008048]
[1770062979713,0.01710608,2338.2,2336.8,0.0008048]
[1770062979714,0.896,2337.4,2336.8,0.0008048]
[1770062980231,12.59343,2338.3,2336.8,0.0008048]
[1770062980232,0.896,2337.7,2336.8,0.0008048]
[1770062980946,0.896,2337.6,2336.8,0.0008048]
[1770062981315,0.896,2337.8,2336.8,0.0008048]
[1770062982229,0.896,2337.8,2337.4,0.001]
[1770062982420,0.896,2337.8,2336.8,0.0008048]
[1770062982822,1.52025502,2337.8,2336.8,0.0008048]
[1770062983031,0.896,2337.8,2336.8,0.0008048]
[1770062985628,14.5588194,2337.8,2336.8,0.0008048]
[1770062985828,12.59343,2337.5,2336.6,0.001]
[1770062986149,12.59343,2337.5,2336.1,1.07096263]
[1770062986349,12.59343,2337.5,2336.2,1.07009352]
[1770062986652,1.259343,2337.4,2336.1,1.07092119]
[1770062987150,1.06961023,2337.3,2336.1,0.0008056]
[1770062987667,1.259343,2337.4,2336.2,12.38528483]
[1770062987960,0.896,2337.7,2336.1,0.0008056]
[1770062988362,13.48943,2337.7,2336.1,0.0008056]
[1770062988669,12.59343,2337.5,2336.1,0.0008056]
[1770062989254,12.59343,2337.2,2336.1,0.0008056]
[1770062989439,1.06961023,2337.3,2336.1,0.0008056]
[1770062990551,1.06959936,2337.4,2336.1,0.0008056]
[1770062991158,13.49033717,2337.6,2336.1,0.0008056]
[1770062991159,14.5598516,2337.6,2336.1,0.0008056]
[1770062991346,14.60581616,2337.5,2336.1,0.0008056]
[1770062993130,11.82505756,2337.3,2336.1,0.0008056]
[1770062993726,11.82505756,2337.1,2335.8,0.001]
[1770062994351,11.82505756,2336.7,2335.6,0.001]
[1770062994539,2.07950576,2336.6,2335.6,1.07135295]
[1770062994741,11.82505756,2337.1,2335.7,1.0703086]
[1770062994955,0.897,2337.0,2336.3,0.001]
[1770062995258,0.897,2337.2,2336.3,0.001]
[1770062997258,1.06970176,2337.1,2336.3,0.001]
[1770062997464,0.62454617,2337.0,2336.3,0.001]
[1770062998458,1.96668803,2337.2,2336.3,0.001]
[1770062998761,13.79174559,2337.2,2336.3,0.001]
[1770063000827,11.82505756,2337.0,2336.0,0.001]
[1770063001077,11.82505756,2336.6,2335.6,0.001]
[1770063001284,11.82505756,2336.2,2335.5,0.001]
[1770063001963,1.07005311,2336.4,2335.5,0.001]
[1770063002259,0.897,2336.3,2335.5,0.001]
[1770063003038,12.72205756,2336.3,2335.5,0.001]
[1770063003237,1.07011386,2336.2,2335.1,0.001]
[1770063003432,1.80726269,2336.1,2335.1,0.001]
[1770063004375,1.80726269,2336.1,2334.6,0.0018016]
[1770063004376,16.33005756,2335.8,2334.6,0.0018016]
[1770063004543,11.82505756,2335.8,2334.6,0.0018016]
[1770063005265,13.12897079,2335.7,2334.6,0.0018016]
[1770063005464,11.82505756,2335.5,2334.6,0.0018016]
[1770063005654,0.91893106,2335.4,2334.6,0.0018016]
[1770063005855,12.74398862,2335.4,2334.6,0.0018016]
[1770063006367,0.91893106,2335.4,2334.6,0.0018016]
[1770063006663,0.897,2335.4,2334.6,0.0018016]
[1770063007235,1.07052627,2335.3,2334.6,0.0018016]
[1770063007437,1.07025129,2335.9,2334.6,0.0018016]
[1770063007667,12.72205756,2335.8,2334.6,0.0018016]
[1770063007866,11.82505756,2335.6,2334.8,0.001]
[1770063008169,13.91353822,2335.5,2334.6,0.0018016]
[1770063008358,13.91353822,2335.5,2334.5,0.001]
[1770063008359,11.82505756,2335.3,2334.5,0.001]
[1770063008556,1.18250576,2335.5,2334.5,0.001]
[1770063008756,12.72305756,2335.4,2334.5,0.001]
[1770063009265,0.90645879,2335.3,2334.5,0.001]
[1770063009464,1.0060083,2335.2,2334.5,0.001]
[1770063010166,0.898,2335.4,2334.5,0.001]
[1770063010541,1.96848138,2335.4,2334.5,0.001]
[1770063010868,0.898,2335.4,2334.5,0.001]
[1770063011270,1.96848369,2335.4,2334.5,0.001]
[1770063011467,0.898,2335.4,2334.5,0.001]
[1770063012537,1.52299918,2335.4,2334.5,0.001]
[1770063012938,0.898,2335.4,2334.5,0.001]
[1770063013565,1.96848554,2335.4,2334.5,0.001]
[1770063013769,11.82505756,2335.2,2334.5,0.001]
[1770063014347,0.898,2335.4,2334.5,0.001]
[1770063014562,0.90677957,2335.3,2334.5,0.001]
[1770063014763,0.28752915,2335.2,2334.5,0.001]
[1770063014975,12.11258671,2335.2,2334.0,0.001]
[1770063015273,11.82505756,2335.0,2334.0,1.07211625]
[1770063015575,1.07075552,2334.8,2334.0,0.001]
[1770063015763,0.898,2334.7,2334.0,0.001]
[1770063016093,12.72305756,2334.7,2334.0,0.001]
[1770063016255,1.37938131,2334.6,2334.0,0.001]
[1770063016961,11.82505756,2334.4,2333.6,0.001]
[1770063017650,2.45022879,2334.6,2333.6,0.001]
[1770063017850,13.20443887,2334.6,2333.6,0.001]
[1770063018075,2.45023259,2334.6,2333.6,0.001]
[1770063018256,1.07085128,2334.6,2333.6,0.001]
[1770063018459,1.96883398,2334.7,2333.6,0.001]
[1770063018876,12.89574392,2335.0,2333.6,0.001]
[1770063019192,1.80447042,2334.9,2333.6,0.001]
[1770063019491,0.28752915,2335.2,2333.8,1.07121432]
[1770063019645,0.898,2335.0,2333.9,1.76175321]
[1770063020776,13.02585445,2334.9,2334.2,0.001]
[1770063020958,12.11924679,2334.9,2333.6,1.07227556]
[1770063021300,12.11924679,2334.8,2334.0,0.001]
[1770063021884,13.19001028,2334.8,2334.0,0.001]
[1770063022085,1.74729622,2334.7,2334.0,0.001]
[1770063026104,1.96869308,2335.0,2334.0,0.001]
[1770063026272,0.90803697,2334.9,2334.0,0.001]
[1770063026480,0.90803697,2334.8,2334.0,0.001]
[1770063026663,1.96866897,2335.0,2334.0,0.001]
[1770063026864,0.9080942,2334.9,2334.0,0.001]
[1770063027063,1.19577052,2334.8,2334.0,0.001]
[1770063027293,0.9080942,2334.7,2334.0,0.001]
[1770063028891,0.898,2335.0,2334.0,0.001]
[1770063029082,0.90982723,2334.9,2334.0,0.001]
[1770063029281,0.91103107,2334.8,2334.0,0.001]
[1770063029610,0.898,2335.0,2334.0,0.001]
[1770063029809,0.91102868,2334.9,2334.0,0.001]
[1770063029996,0.91102868,2334.8,2334.0,0.001]
[1770063030196,0.898,2335.0,2334.0,0.001]
[1770063030401,0.91114326,2334.9,2334.0,0.53839482]
[1770063030706,0.91114326,2334.8,2334.0,0.53839482]
[1770063030911,0.898,2335.0,2334.0,0.53839482]
[1770063031112,0.9111502,2334.9,2334.0,0.53839482]
[1770063031315,1.12394026,2335.4,2334.1,12.48251732]
[1770063031482,0.0011,2335.4,2334.3,12.46541124]
[1770063031684,0.0011,2335.4,2334.2,1.30209121]
[1770063031882,0.0011,2335.4,2334.0,0.53839482]
[1770063031883,1.10962506,2335.5,2334.4,12.46541124]
[1770063032084,2.25058885,2336.8,2335.5,0.01710608]
[1770063032317,0.0008016,2337.0,2336.2,0.01710608]
[1770063032624,0.0008016,2337.0,2335.9,1.07024438]
[1770063032831,13.18980153,2337.0,2335.6,1.07036762]
[1770063033031,13.18980153,2337.0,2335.5,1.07042713]
[1770063033182,13.18980153,2337.0,2335.2,0.91510608]
[1770063033183,12.11924679,2336.9,2335.7,1.07034282]
[1770063033388,12.11924679,2336.9,2335.7,1.07031588]
[1770063033646,0.0008016,2337.0,2335.9,1.07024534]
[1770063033925,0.0008016,2337.0,2336.0,0.55223113]
[1770063034288,2.25168885,2338.3,2336.7,0.01710608]
[1770063034491,0.898,2338.0,2337.0,0.01710608]
[1770063034720,1.96730974,2338.0,2336.5,1.06997646]
[1770063035015,1.96730974,2338.0,2336.4,1.06999084]
[1770063035182,12.11924679,2337.9,2336.4,1.06999084]
[1770063035587,12.12004999,2337.8,2336.4,1.06999084]
[1770063035787,12.12004999,2337.8,2336.3,1.0700425]
[1770063036204,1.06942721,2337.7,2336.1,1.07015966]
[1770063036517,12.11924679,2337.6,2336.2,0.01710608]
[1770063036818,1.3188674,2337.5,2336.2,0.60740903]
[1770063037025,13.43811419,2337.5,2336.2,0.59030295]
[1770063037316,13.43811419,2337.5,2336.1,0.01710608]
[1770063038213,0.898,2337.4,2336.2,1.07011386]
[1770063038416,14.08681345,2337.4,2336.0,1.07017796]
[1770063038720,14.08681345,2337.4,2335.8,1.07026187]
[1770063038892,12.11924679,2337.2,2335.8,1.07026187]
[1770063039090,12.11924679,2337.2,2335.4,5.17986685]
[1770063039091,12.11924679,2337.2,2336.0,1.07018697]
[1770063039390,12.11924679,2337.2,2335.9,1.07022864]
[1770063039585,12.11924679,2337.2,2335.7,4.28132244]
[1770063039915,1.4321211,2337.1,2336.1,1.07014314]
[1770063040390,1.4321211,2337.1,2336.1,0.01710608]
[1770063040588,0.898,2337.2,2336.1,0.01710608]
[1770063040912,1.96766187,2337.2,2336.1,0.01710608]
[1770063041113,1.96766187,2337.2,2335.9,1.07025129]
[1770063041816,12.11924679,2337.0,2335.4,0.898]
[1770063042003,12.11924679,2337.0,2335.8,1.07028246]
[1770063042201,1.21192468,2336.9,2335.8,1.07028378]
[1770063042407,1.21192468,2336.9,2335.5,4.28168229]
[1770063042601,2.28171832,2336.9,2335.5,4.28168229]
[1770063043515,14.40096511,2336.9,2335.5,1.07043459]
[1770063045590,12.11924679,2336.7,2335.5,1.07043459]
[1770063045790,12.11924679,2336.7,2335.1,0.84360023]
[1770063045791,1.21192468,2336.6,2335.1,0.84360023]
[1770063045987,12.11924679,2336.2,2335.1,0.84360023]
[1770063046219,12.11924679,2336.2,2335.2,1.07054262]
[1770063046529,12.11924679,2336.2,2335.5,0.001]
[1770063046824,1.21192468,2336.6,2335.5,0.001]
[1770063046825,2.10992468,2336.1,2335.5,0.001]
[1770063046992,0.898,2336.2,2335.5,0.001]
[1770063049420,1.07007759,2336.3,2335.5,0.001]
[1770063049619,0.898,2336.3,2335.5,0.001]
[1770063049813,13.33117147,2336.6,2335.5,0.001]
[1770063050117,0.898,2336.5,2335.5,0.001]
[1770063050321,1.52991026,2336.4,2335.5,0.001]
[1770063050691,13.32399181,2336.4,2335.5,0.001]
[1770063050891,12.8641496,2336.3,2335.5,0.001]
[1770063052119,11.79408155,2336.1,2335.1,0.84360023]
[1770063052317,11.79408155,2335.9,2334.7,1.07080119]
[1770063052513,12.69208155,2335.8,2334.7,1.07080119]
[1770063052708,12.69208155,2335.8,2334.6,0.0008024]
[1770063052919,11.79408155,2335.4,2334.6,0.0008024]
[1770063053117,11.79408155,2335.4,2334.1,0.001]
[1770063053318,11.79408155,2335.2,2334.1,0.001]
[1770063053638,11.79408155,2335.0,2334.1,0.001]
[1770063055005,12.86476445,2335.0,2334.1,0.001]
[1770063056433,11.79408155,2334.2,2333.2,0.78570438]
[1770063056590,13.89484674,2334.1,2333.2,0.0008032]
[1770063056798,11.79408155,2333.9,2333.0,0.001]
[1770063057024,12.86538768,2333.6,2333.0,0.001]
[1770063057325,11.79408155,2333.6,2333.0,0.001]
[1770063057532,0.898,2333.5,2333.0,0.001]
[1770063057714,0.898,2333.5,2332.8,0.001]
[1770063057715,1.26920815,2333.4,2332.8,0.001]
[1770063059028,1.26920815,2333.4,2333.0,0.001]
[1770063059227,2.34062216,2333.4,2333.0,0.001]
[1770063059800,1.26920815,2333.4,2333.0,0.001]
[1770063060024,1.9693574,2333.5,2332.8,0.001]
[1770063060333,12.86543895,2333.5,2332.8,0.001]
[1770063060515,0.898,2333.4,2332.8,0.001]
[1770063060716,12.86524998,2333.9,2332.8,0.001]
[1770063061036,11.79408155,2333.9,2332.8,0.001]
[1770063061236,0.898,2333.8,2332.8,0.001]
[1770063061819,1.20276519,2334.1,2332.9,0.01710608]
[1770063062017,0.898,2334.0,2333.0,0.01710608]
[1770063062222,0.898,2334.0,2332.8,0.001]
[1770063062402,0.898,2334.0,2332.9,0.01710608]
[1770063062727,12.86485973,2334.8,2333.2,0.01710608]
[1770063062926,12.69208155,2334.4,2332.8,0.001]
[1770063063122,0.898,2334.4,2332.9,0.01710608]
[1770063063325,0.898,2334.4,2333.0,1.07158165]
[1770063063523,0.898,2334.3,2333.0,11.9084156]
[1770063063832,0.898,2334.3,2333.0,1.07158165]
[1770063064035,0.898,2334.3,2333.1,0.53579083]
[1770063065410,0.898,2334.5,2333.3,0.01710608]
[1770063065607,0.898,2334.6,2333.3,0.01710608]
[1770063065808,0.898,2334.6,2333.2,1.07148979]
[1770063066034,0.898,2334.6,2333.3,0.01710608]
[1770063066236,0.36835925,2334.5,2333.3,0.60814067]
[1770063066447,12.1624408,2334.5,2333.3,0.59103459]
[1770063067409,1.07093899,2334.4,2333.3,1.66243755]
[1770063069055,12.1624408,2334.5,2333.3,1.66243755]
[1770063069212,1.07057211,2335.2,2333.3,12.51637758]
[1770063069414,1.07066381,2335.0,2333.3,12.51637758]
[1770063069610,0.898,2334.9,2333.6,0.01710608]
[1770063069814,0.898,2334.9,2333.3,12.51637758]
[1770063070443,4.28192854,2335.4,2333.3,12.51637758]
[1770063070444,1.07122403,2335.6,2334.2,0.01710608]
[1770063070644,0.43073397,2335.6,2333.9,10.85394003]
[1770063070830,0.43073397,2335.6,2334.4,0.01710608]
[1770063071031,12.865279,2335.6,2333.4,11.83723395]
[1770063071345,12.865279,2335.6,2333.7,1.07126023]
[1770063071548,0.0011,2334.4,2333.7,1.07126023]
[1770063072751,0.0011,2334.6,2333.7,1.07126023]
[1770063073534,11.79598475,2335.6,2333.9,10.85174003]
[1770063073738,1.28663492,2335.5,2334.0,11.91980795]
[1770063074717,1.28663492,2335.5,2334.1,0.01710608]
[1770063074935,0.0019032,2335.6,2334.1,10.85174003]
[1770063075522,0.0019032,2335.6,2334.2,11.90566471]
[1770063076523,0.0011,2336.2,2334.6,10.83463395]
[1770063076952,12.86529783,2336.2,2334.6,10.83463395]
[1770063077122,1.71465392,2336.1,2334.7,1.085174]
[1770063077445,1.71465392,2336.1,2334.8,0.01710608]
[1770063077646,0.0011,2336.2,2334.8,0.01710608]
[1770063077647,0.0011,2336.2,2334.9,1.07070966]
[1770063078236,1.0712148,2336.2,2334.9,1.07070966]
[1770063078634,0.0011,2336.2,2334.9,1.07070966]
[1770063082156,0.0011,2336.2,2334.8,4.28283866]
[1770063082360,0.0011,2336.2,2334.9,1.72714989]
[1770063082765,0.0011,2336.2,2335.1,10.84983683]
[1770063082930,0.0011,2336.2,2335.1,10.83273075]
[1770063083670,0.0011,2336.2,2335.0,0.898]
[1770063083671,0.0011,2336.2,2335.2,10.84983683]
[1770063084188,0.000804,2336.3,2335.2,10.84983683]
[1770063084374,0.000804,2336.3,2335.3,12.9871407]
[1770063084670,0.0011,2336.0,2335.3,2.15550995]
[1770063085258,0.0011,2336.0,2335.3,1.08498368]
[1770063085557,0.0011,2336.0,2335.2,1.0705626]
[1770063086450,0.0011,2336.0,2335.1,4.28335573]
[1770063086639,0.0011,2336.0,2335.1,1.07161796]
[1770063087029,0.0011,2336.0,2335.1,0.001]
[1770063088043,0.0011,2336.0,2335.1,0.62633858]
[1770063088451,0.0011,2336.0,2335.1,1.69695249]
[1770063089449,12.72789779,2336.0,2335.1,0.001]
[1770063089645,12.72789779,2336.0,2334.9,0.001]
[1770063090057,12.72789779,2336.0,2334.9,1.07170096]
[1770063090261,12.72789779,2336.0,2335.0,1.07065992]
[1770063090576,12.72789779,2336.0,2334.9,0.001]
[1770063090577,1.07025129,2335.9,2334.9,0.001]
[1770063090876,1.37981491,2335.8,2334.9,0.001]
[1770063091243,14.1066127,2335.8,2334.3,1.07095763]
[1770063091443,0.90814374,2335.7,2334.3,1.07095763]
[1770063091644,14.1066127,2335.8,2334.3,1.07095763]
[1770063092478,1.37981491,2335.8,2334.3,11.90458838]
[1770063092651,13.79811287,2336.0,2334.5,1.07089312]
[1770063092851,12.72789779,2336.0,2334.5,11.90452387]
[1770063093155,0.0011,2336.0,2334.5,11.90452387]
[1770063093799,12.72789779,2336.0,2334.5,11.90452387]
[1770063094090,12.72789779,2336.0,2334.5,1.07089312]
[1770063094272,12.72789779,2336.0,2334.6,0.7873029]
[1770063094273,14.10660494,2335.9,2334.6,0.7873029]
[1770063094452,14.10660494,2335.9,2334.5,1.07089312]
[1770063094653,12.72679779,2335.7,2334.5,1.07089312]
[1770063095357,12.72679779,2335.7,2334.4,1.96890519]
[1770063095569,12.72679779,2335.5,2334.4,1.07093836]
[1770063096361,12.72679779,2335.3,2334.0,1.07110458]
[1770063096566,12.72679779,2335.1,2334.0,1.07110458]
[1770063096764,14.70719378,2335.0,2333.9,1.07216843]
[1770063096990,12.72679779,2334.8,2333.9,0.001]
[1770063097189,1.47713103,2334.7,2333.9,0.001]
[1770063097854,1.47713103,2334.7,2334.6,0.001]
[1770063098168,1.47713103,2334.7,2334.4,0.001]
[1770063098895,1.13492392,2335.2,2334.4,0.001]
[1770063099230,15.17692133,2335.6,2334.4,0.001]
[1770063099231,2.45010717,2335.6,2334.4,0.001]
[1770063099365,2.45010717,2335.6,2334.5,0.01710608]
[1770063099366,0.91138518,2335.5,2334.5,0.01710608]
[1770063099555,1.37970949,2335.6,2334.5,0.01710608]
[1770063099887,2.45009239,2335.9,2334.8,0.01710608]
[1770063099888,1.37980715,2335.9,2334.8,0.01710608]
[1770063100194,1.37980715,2335.9,2334.5,0.01710608]
[1770063100195,0.91147627,2335.8,2334.5,0.01710608]
[1770063100397,12.72789779,2336.0,2334.8,0.01710608]
[1770063100699,0.91196279,2335.9,2334.9,0.01710608]
[1770063100896,0.0011,2336.0,2335.0,1.07066381]
[1770063101101,0.0011,2336.0,2335.0,1.60599572]
[1770063101102,0.91196278,2335.9,2335.0,1.60599572]
[1770063101266,0.0011,2336.0,2335.0,1.6231018]
[1770063101666,0.0011,2336.2,2335.5,0.01710608]
[1770063101984,1.13492392,2337.1,2336.0,0.01710608]
[1770063102206,0.0011,2337.2,2336.3,0.01710608]
[1770063102500,0.0011,2337.4,2336.7,0.01710608]
[1770063102712,0.0011,2337.4,2336.0,10.82952675]
[1770063102876,0.0011,2337.4,2336.3,1.07006805]
[1770063103324,12.72789779,2337.4,2336.1,1.08466328]
[1770063103531,13.63823198,2337.3,2335.7,0.01710608]
[1770063103696,0.91143419,2337.2,2336.1,1.07012755]
[1770063103894,0.91138901,2337.1,2336.1,1.07012755]
[1770063104240,13.86172171,2337.3,2335.8,1.07027298]
[1770063104389,12.72679779,2337.1,2335.8,1.07027298]
[1770063104724,15.00166005,2337.0,2335.9,1.07023477]
[1770063104910,15.16034354,2337.0,2335.6,1.07038876]
[1770063105096,15.16034354,2337.0,2335.5,6.2202623]
[1770063105097,14.7727266,2336.9,2335.5,2.11098166]
[1770063105301,0.91100489,2336.8,2335.5,2.11098166]
[1770063105608,0.91100489,2336.7,2335.5,2.11098166]
[1770063105810,12.72679779,2336.9,2335.6,0.639272]
[1770063105982,13.63770717,2336.8,2335.6,0.639272]
[1770063106189,0.91090938,2336.7,2335.5,2.11098166]
[1770063106392,12.72679779,2336.8,2335.5,2.11098166]
[1770063106589,0.91088051,2336.7,2335.5,2.11098166]
[1770063106823,12.72679779,2336.8,2335.5,2.11098166]
[1770063107143,0.91087715,2336.7,2335.5,2.11098166]
[1770063107430,1.47075236,2336.6,2335.6,0.639272]
[1770063108207,1.47075236,2336.6,2335.2,4.29938326]
[1770063108208,12.72679779,2336.4,2334.6,0.0008032]
[1770063108405,12.72679779,2336.4,2335.1,1.07058644]
[1770063108406,12.72679779,2336.2,2335.1,1.07058644]
[1770063108719,12.72679779,2336.2,2334.9,1.07067685]
[1770063108720,0.91057891,2336.1,2334.9,1.07067685]
[1770063108903,0.91057891,2336.0,2334.9,0.01710608]
[1770063109104,1.56703006,2336.1,2334.6,16.21323626]
[1770063109437,14.36112563,2336.1,2334.6,0.0008032]
[1770063109611,11.72393567,2335.9,2334.6,0.0008032]
[1770063109812,2.17550531,2335.8,2334.6,0.0008032]
[1770063110004,0.898,2335.7,2334.6,0.0008032]
[1770063110206,12.22919089,2335.5,2334.6,0.0008032]
[1770063111021,13.29962622,2335.5,2334.6,0.0008032]
[1770063111540,13.29962622,2335.5,2334.6,0.0018032]
[1770063111758,1.75811885,2335.4,2334.6,0.0018032]
[1770063112110,1.07043533,2335.5,2334.6,0.0018032]
[1770063112711,0.90978488,2335.4,2334.6,0.0018032]
[1770063112947,1.07043533,2335.5,2334.6,0.0018032]
[1770063113151,4.28156231,2335.6,2334.6,0.0018032]
[1770063113316,0.9096817,2335.5,2334.6,0.0018032]
[1770063113515,0.82945567,2335.5,2334.6,0.0018032]
[1770063114273,2.16314064,2335.8,2334.6,0.0018032]
[1770063114751,3.77212292,2336.1,2334.6,0.0018032]
[1770063114752,1.56703006,2336.1,2334.6,0.0018032]
[1770063114958,1.80789399,2336.0,2334.6,0.0018032]
[1770063115150,0.898,2336.0,2334.6,0.0018032]
[1770063115757,1.96820589,2336.0,2334.6,0.0018032]
[1770063116047,12.22919089,2335.6,2334.6,0.0018032]
[1770063116259,0.90996525,2335.5,2334.6,0.0018032]
[1770063116551,12.22919089,2335.6,2334.6,0.0018032]
[1770063116754,0.90972246,2335.5,2334.6,0.0018032]
[1770063116962,12.22919089,2335.6,2334.6,0.0018032]
[1770063116963,13.13890581,2335.4,2334.6,0.0018032]
[1770063117124,3.28241685,2335.3,2334.6,0.0018032]
[1770063118059,12.22919089,2335.2,2334.4,0.001]
[1770063118432,3.28241685,2335.3,2334.4,0.001]
[1770063118626,0.90940274,2335.2,2334.4,0.001]
[1770063118831,0.41918196,2335.1,2334.4,0.001]
[1770063119063,14.19771716,2335.3,2334.4,0.001]
[1770063119258,0.90928278,2335.2,2334.4,0.001]
[1770063119427,14.19771716,2335.3,2334.4,0.001]
[1770063119633,13.13847631,2335.2,2333.9,0.0018048]
[1770063119841,12.22919089,2335.0,2333.9,0.0018048]
[1770063120044,14.45221042,2334.9,2333.9,0.0018048]
[1770063120249,12.22919089,2334.9,2333.9,0.0018048]
[1770063121054,12.22919089,2334.5,2333.4,0.001]
[1770063121253,14.03582053,2334.4,2333.4,0.001]
[1770063121565,13.12719089,2334.4,2333.4,0.001]
[1770063121739,1.31271909,2334.3,2333.4,0.001]
[1770063123186,0.898,2334.4,2333.4,0.001]
[1770063123336,0.898,2334.6,2333.4,0.001]
[1770063124039,0.898,2334.6,2333.6,0.001]
[1770063124242,13.12719089,2334.6,2333.6,0.001]
[1770063125241,0.898,2334.6,2333.6,0.001]
[1770063125446,1.96884998,2334.6,2333.6,0.001]
[1770063125667,2.59404003,2334.6,2333.6,0.001]
[1770063127939,14.82323092,2334.6,2333.6,0.001]
[1770063129459,14.82323092,2334.6,2333.6,0.001]
[1770063132551,14.82323092,2334.6,2333.4,0.001]
[1770063132552,12.22919089,2334.4,2333.4,0.001]
[1770063132870,12.22919089,2334.2,2333.4,0.001]
[1770063133073,13.45210998,2334.1,2333.4,0.001]
[1770063133654,13.45210998,2334.1,2333.2,0.001804]
[1770063133655,14.19831342,2334.0,2333.2,0.001804]
[1770063134580,12.22919089,2333.8,2332.8,0.001]
[1770063134879,0.90640981,2333.9,2332.3,0.29053269]
[1770063134880,12.22919089,2333.4,2332.3,0.29053269]